bitfinex-derivatives/quotes_BTCF0:USTF0_20241221
["timestamp","ask_amount","ask_price","bid_price","bid_amount"]
[1734799636396,0.013,97251.0,97250.0,0.7226]
[1734799636696,0.33741808,97274.0,97250.0,0.7226]
[1734799636903,0.051424,97264.0,97263.0,0.3608]
[1734799637201,0.051431,97251.0,97250.0,0.36244]
[1734799637504,0.051431,97251.0,97250.0,0.3618]
[1734799637711,0.051431,97251.0,97250.0,0.3608]
[1734799638002,0.051431,97251.0,97250.0,0.3618]
[1734799638394,0.051431,97251.0,97250.0,0.001]
[1734799638806,0.0682746,97251.0,97250.0,0.001]
[1734799639196,0.056431,97251.0,97250.0,0.001]
[1734799639396,0.062431,97251.0,97250.0,0.001]
[1734799639696,0.029831,97263.0,97250.0,0.001]
[1734799639897,0.029831,97263.0,97242.0,0.412235]
[1734799639898,0.051426,97261.0,97242.0,0.412235]
[1734799640206,0.058431,97251.0,97250.0,0.001]
[1734799640600,0.057431,97251.0,97242.0,0.412235]
[1734799640817,0.057431,97251.0,97250.0,0.001]
[1734799641108,0.051431,97251.0,97250.0,0.001]
[1734799641706,0.051431,97251.0,97242.0,0.3608]
[1734799641707,0.051435,97243.0,97242.0,0.3608]
[1734799641894,0.05144,97235.0,97233.0,0.3608]
[1734799642304,0.051439,97237.0,97233.0,0.3608]
[1734799642505,0.05144,97234.0,97233.0,0.3608]
[1734799643207,0.05144,97234.0,97233.0,0.3698]
[1734799643811,0.051446,97222.0,97221.0,0.00154273]
[1734799645009,0.0695,97233.0,97221.0,0.00154273]
[1734799645010,0.020946,97233.0,97221.0,0.00154273]
[1734799645707,0.001,97222.0,97221.0,0.01554273]
[1734799645904,0.052446,97222.0,97221.0,0.01554273]
[1734799646102,0.001,97222.0,97221.0,0.01554273]
[1734799646303,0.001,97233.0,97232.0,0.051441]
[1734799646509,0.001,97233.0,97232.0,0.412241]
[1734799647393,0.051439,97237.0,97232.0,0.412241]
[1734799647599,0.01177516,97245.0,97232.0,0.3608]
[1734799647797,0.05144,97234.0,97232.0,0.3608]
[1734799647996,0.002,97233.0,97232.0,0.3608]
[1734799648711,0.05144,97234.0,97232.0,0.3608]
[1734799649009,0.001,97233.0,97224.0,0.3608]
[1734799649203,0.001,97233.0,97225.0,0.0673]
[1734799649418,0.05144,97234.0,97229.0,0.051442]
[1734799650213,0.31624,97248.0,97232.0,0.002]
[1734799650508,0.002,97233.0,97232.0,0.002]
[1734799650698,0.002,97233.0,97229.0,0.003]
[1734799650903,0.051442,97231.0,97229.0,0.003]
[1734799652711,0.051442,97230.0,97223.0,0.051445]
[1734799652906,0.051443,97228.0,97225.0,0.3608]
[1734799653216,0.375673,97248.0,97225.0,0.3608]
[1734799653520,0.004,97231.0,97227.0,0.051443]
[1734799653816,0.051442,97230.0,97227.0,0.051443]
[1734799654017,0.051443,97229.0,97225.0,0.3658]
[1734799654216,0.051444,97227.0,97225.0,0.3658]
[1734799654717,0.051444,97227.0,97225.0,0.3668]
[1734799655413,0.37546249,97240.0,97225.0,0.3668]
[1734799655821,0.051444,97227.0,97225.0,0.3618]
[1734799656406,0.051444,97227.0,97225.0,0.3668]
[1734799656607,0.01154884,97240.0,97225.0,0.3668]
[1734799656902,0.01934,97250.0,97238.0,0.3608]
[1734799656903,0.051435,97243.0,97238.0,0.3608]
[1734799657109,0.18325195,97244.0,97238.0,0.3608]
[1734799657307,0.051437,97240.0,97238.0,0.3608]
[1734799657708,0.18325195,97244.0,97238.0,0.3608]
[1734799657915,0.18325195,97244.0,97238.0,0.412237]
[1734799658118,0.051432,97249.0,97238.0,0.412237]
[1734799658312,0.051435,97245.0,97240.0,0.051436]
[1734799658615,0.03079955,97250.0,97238.0,0.3608]
[1734799658817,0.051436,97242.0,97238.0,0.3608]
[1734799659006,0.051436,97242.0,97238.0,0.3618]
[1734799659408,0.051436,97242.0,97238.0,0.3608]
[1734799659720,0.051436,97242.0,97240.0,0.001]
[1734799660018,0.006,97244.0,97238.0,0.001]
[1734799660209,0.006,97244.0,97243.0,0.3608]
[1734799660417,0.051434,97245.0,97243.0,0.3608]
[1734799660616,0.03079955,97250.0,97243.0,0.3608]
[1734799660821,0.05153355,97256.0,97243.0,0.3608]
[1734799661116,0.051429,97255.0,97243.0,0.3608]
[1734799661417,0.051432,97250.0,97243.0,0.3608]
[1734799661621,0.01593949,97257.0,97243.0,0.3608]
[1734799661814,0.01593949,97257.0,97253.0,0.3608]
[1734799662214,0.051429,97255.0,97253.0,0.3608]
[1734799663421,0.059429,97255.0,97253.0,0.3618]
[1734799663614,0.08093793,97263.0,97253.0,0.001]
[1734799663929,0.4316,97256.0,97232.0,0.3608]
[1734799664110,0.10156944,97242.0,97230.0,0.18423461]
[1734799664420,0.051441,97231.0,97230.0,0.18423461]
[1734799665121,0.051441,97231.0,97217.0,0.3608]
[1734799665315,0.051446,97222.0,97217.0,0.3608]
[1734799666126,0.051446,97222.0,97221.0,0.00254273]
[1734799666720,0.051446,97222.0,97221.0,0.00754273]
[1734799667426,0.0662,97238.0,97221.0,0.00754273]
[1734799667811,0.0662,97238.0,97221.0,0.00954273]
[1734799668012,0.051446,97222.0,97221.0,0.00954273]
[1734799669016,0.051446,97222.0,97221.0,0.00354273]
[1734799669420,0.3608,97227.0,97223.0,0.051446]
[1734799669629,0.05144,97233.0,97226.0,0.051444]
[1734799669927,0.051441,97232.0,97227.0,0.2106]
[1734799670129,0.0354705,97244.0,97227.0,0.262043]
[1734799670426,0.051442,97230.0,97227.0,0.262043]
[1734799672127,0.052442,97230.0,97227.0,0.262043]
[1734799672324,0.051443,97229.0,97227.0,0.262043]
[1734799672730,0.00545078,97244.0,97227.0,0.264043]
[1734799673023,0.004,97244.0,97227.0,0.264043]
[1734799673421,0.051442,97230.0,97227.0,0.264043]
[1734799673618,0.051443,97229.0,97227.0,0.264043]
[1734799674033,0.051443,97229.0,97227.0,0.2126]
[1734799674431,0.051443,97229.0,97227.0,0.2106]
[1734799675121,0.051443,97229.0,97227.0,0.2116]
[1734799675820,0.051443,97229.0,97227.0,0.2146]
[1734799676128,0.051443,97229.0,97227.0,0.1423]
[1734799676629,0.051443,97229.0,97227.0,0.004]
[1734799677332,0.051444,97226.0,97225.0,0.3608]
[1734799678430,0.051444,97226.0,97225.0,0.3658]
[1734799678623,0.15242784,97240.0,97225.0,0.3678]
[1734799678827,0.15335043,97230.0,97225.0,0.3678]
[1734799680127,0.051444,97226.0,97225.0,0.005]
[1734799680919,0.051451,97212.0,97211.0,0.18423461]
[1734799682024,0.05001378,97212.0,97204.0,0.3608]
[1734799682229,0.051455,97206.0,97204.0,0.3608]
[1734799682427,0.05001378,97212.0,97204.0,0.3608]
[1734799682633,0.1340343,97216.0,97205.0,0.051455]
[1734799682821,0.1340343,97216.0,97215.0,0.3608]
[1734799683334,0.1532242,97223.0,97215.0,0.3608]
[1734799683638,0.2046702,97223.0,97222.0,0.3608]
[1734799684626,0.14339266,97223.0,97222.0,0.3608]
[1734799685136,0.14339266,97223.0,97222.0,0.3628]
[1734799685325,0.14339266,97223.0,97222.0,0.3678]
[1734799685521,0.051446,97223.0,97222.0,0.3678]
[1734799686724,0.16969465,97232.0,97222.0,0.3678]
[1734799686725,0.15476755,97232.0,97231.0,0.051441]
[1734799687023,0.00154335,97232.0,97231.0,0.412241]
[1734799687228,0.05476755,97234.0,97233.0,0.05144]
[1734799688726,0.002,97234.0,97233.0,0.05144]
[1734799689528,0.005,97234.0,97233.0,0.05144]
[1734799689829,0.051435,97244.0,97240.0,0.051436]
[1734799690029,0.051435,97244.0,97243.0,0.3608]
[1734799690842,0.051435,97244.0,97233.0,0.004]
[1734799691023,0.051435,97244.0,97231.0,0.54567461]
[1734799691024,0.1016177,97243.0,97231.0,0.54567461]
[1734799691334,0.051441,97232.0,97231.0,0.18423461]
[1734799691735,0.051441,97232.0,97231.0,0.16319902]
[1734799692039,0.051447,97220.0,97219.0,0.52399902]
[1734799692828,0.351447,97220.0,97219.0,0.16319902]
[1734799693033,0.351447,97220.0,97219.0,0.15705948]
[1734799693229,0.051455,97205.0,97204.0,0.00064]
[1734799693436,0.051455,97205.0,97203.0,0.24631226]
[1734799693633,0.0530727,97214.0,97203.0,0.24631226]
[1734799693939,0.041455,97205.0,97203.0,0.24631226]
[1734799694534,0.041455,97205.0,97204.0,0.006]
[1734799696342,0.06404511,97207.0,97203.0,0.015]
[1734799696643,0.06404511,97208.0,97203.0,0.015]
[1734799697039,0.051455,97205.0,97203.0,0.009]
[1734799697247,0.051455,97205.0,97204.0,0.0010609]
[1734799697543,0.051455,97205.0,97204.0,0.0100609]
[1734799697935,0.051455,97205.0,97204.0,0.009]
[1734799698144,0.051455,97205.0,97203.0,0.006]
[1734799698339,0.051455,97205.0,97203.0,0.015]
[1734799698933,0.612255,97207.0,97203.0,0.015]
[1734799699147,0.051455,97205.0,97203.0,0.015]
[1734799699439,0.051462,97192.0,97190.0,0.00012332]
[1734799699644,0.412262,97192.0,97190.0,0.00012332]
[1734799699838,0.0709,97191.0,97190.0,0.00012332]
[1734799700040,0.1378,97191.0,97190.0,0.00012332]
[1734799700946,0.1388,97191.0,97190.0,0.00912332]
[1734799701448,0.001,97191.0,97190.0,0.01212332]
[1734799701739,0.001,97191.0,97190.0,0.01198513]
[1734799701961,0.42822201,97192.0,97190.0,0.01198513]
[1734799701962,0.00052001,97192.0,97190.0,0.37278513]
[1734799702131,0.051457,97202.0,97190.0,0.42424813]
[1734799702337,0.01004772,97211.0,97201.0,0.3608]
[1734799702538,0.1016177,97211.0,97201.0,0.3608]
[1734799702741,0.051456,97204.0,97201.0,0.3608]
[1734799703142,0.00012167,97210.0,97201.0,0.3608]
[1734799703346,0.00012167,97210.0,97209.0,0.3608]
[1734799704150,0.00012167,97210.0,97209.0,0.412253]
[1734799704649,0.07896804,97230.0,97209.0,0.412253]
[1734799704851,0.051442,97229.0,97220.0,0.3608]
[1734799705044,0.051447,97221.0,97220.0,0.3608]
[1734799706645,0.005,97221.0,97209.0,0.3608]
[1734799706847,0.005,97221.0,97218.0,0.412248]
[1734799707142,0.005,97221.0,97218.0,0.3608]
[1734799707844,0.007,97221.0,97218.0,0.3608]
[1734799709041,0.002,97221.0,97218.0,0.3608]
[1734799709241,0.003,97221.0,97218.0,0.3608]
[1734799710048,0.002,97221.0,97218.0,0.3608]
[1734799710245,0.002,97221.0,97220.0,0.051447]
[1734799710855,0.051437,97240.0,97233.0,0.05144]
[1734799711044,0.051437,97240.0,97238.0,0.3608]
[1734799711247,0.07294662,97250.0,97238.0,0.3608]
[1734799711550,0.051436,97241.0,97238.0,0.3608]
[1734799711849,0.051437,97240.0,97238.0,0.3608]
[1734799713050,0.054437,97240.0,97238.0,0.3608]
[1734799713755,0.1403,97239.0,97238.0,0.3608]
[1734799713959,0.0403,97239.0,97228.0,0.3608]
[1734799714143,0.051442,97229.0,97228.0,0.3608]
[1734799714451,0.051447,97221.0,97220.0,0.3608]
[1734799715843,0.051453,97209.0,97202.0,0.0719]
[1734799716051,0.3608,97231.0,97208.0,0.3608]
[1734799716354,0.051449,97218.0,97216.0,0.3608]
[1734799716556,0.005,97221.0,97216.0,0.3608]
[1734799716855,0.01863323,97240.0,97226.0,0.051444]
[1734799716856,0.051441,97233.0,97226.0,0.051444]
[1734799717040,0.051441,97233.0,97232.0,0.3608]
[1734799718559,0.051437,97240.0,97232.0,0.412241]
[1734799718948,0.15461463,97250.0,97232.0,0.412241]
[1734799719146,0.051437,97239.0,97232.0,0.412241]
[1734799719555,0.051433,97247.0,97239.0,0.051437]
[1734799719857,0.051433,97247.0,97244.0,0.3608]
[1734799720067,0.051434,97246.0,97244.0,0.3608]
[1734799720250,0.17162487,97253.0,97244.0,0.3608]
[1734799720446,0.17162487,97253.0,97252.0,0.3608]
[1734799720646,0.05143,97254.0,97252.0,0.3608]
[1734799720957,0.06968412,97254.0,97252.0,0.3608]
[1734799722047,0.06968412,97254.0,97252.0,0.3618]
[1734799722448,0.05143,97254.0,97252.0,0.3618]
[1734799723057,0.05643,97254.0,97252.0,0.3618]
[1734799723959,0.005,97254.0,97252.0,0.3618]
[1734799724254,0.005,97254.0,97252.0,0.41323]
[1734799724756,0.005,97254.0,97252.0,0.3608]
[1734799724952,0.07413089,97258.0,97252.0,0.3618]
[1734799725255,0.004,97254.0,97252.0,0.3618]
[1734799725953,0.051428,97257.0,97252.0,0.3618]
[1734799726756,0.004,97254.0,97252.0,0.3618]
[1734799726952,0.05543,97254.0,97252.0,0.3618]
[1734799727962,0.05543,97254.0,97252.0,0.3608]
[1734799728159,0.05543,97254.0,97252.0,0.3618]
[1734799728360,0.05143,97254.0,97252.0,0.3618]
[1734799729161,0.005,97257.0,97252.0,0.3618]
[1734799729359,0.004,97254.0,97252.0,0.3618]
[1734799730566,0.004,97254.0,97252.0,0.3608]
[1734799731261,0.0240336,97259.0,97252.0,0.3608]
[1734799731460,0.004,97257.0,97252.0,0.3608]
[1734799731661,0.05143,97254.0,97252.0,0.3608]
[1734799732267,0.051437,97240.0,97231.0,0.3608]
[1734799732568,0.051438,97238.0,97231.0,0.3608]
[1734799734262,0.05144,97234.0,97231.0,0.3608]
[1734799734460,0.05144,97234.0,97233.0,0.003]
[1734799734870,0.05144,97234.0,97233.0,0.011]
[1734799735259,0.05144,97234.0,97233.0,0.008]
[1734799735566,0.051446,97223.0,97222.0,0.0689]
[1734799735766,0.3608,97227.0,97214.0,0.0679]
[1734799735969,0.05145,97216.0,97214.0,0.0679]
[1734799736863,0.051446,97222.0,97214.0,0.0679]
[1734799737163,0.3608,97227.0,97214.0,0.0679]
[1734799737368,0.003,97234.0,97214.0,0.0679]
[1734799737575,0.051443,97229.0,97220.0,0.1016177]
[1734799737763,0.15307141,97229.0,97228.0,0.3608]
[1734799739174,0.07443697,97234.0,97228.0,0.3628]
[1734799739472,0.05144,97234.0,97228.0,0.3628]
[1734799740560,0.051442,97230.0,97228.0,0.3608]
[1734799740760,0.051442,97230.0,97228.0,0.002]
[1734799740982,0.051442,97230.0,97229.0,0.3608]
[1734799742373,0.052442,97230.0,97229.0,0.3608]
[1734799743365,0.051447,97221.0,97220.0,0.3608]
[1734799744365,0.051453,97209.0,97208.0,0.00154301]
[1734799745563,0.01007225,97219.0,97208.0,0.00154301]
[1734799745765,0.01007225,97228.0,97213.0,0.3608]
[1734799745962,0.01007225,97227.0,97220.0,0.006]
[1734799746170,0.051447,97221.0,97220.0,0.006]
[1734799746365,0.00154336,97229.0,97220.0,0.006]
[1734799746671,0.00154336,97229.0,97227.0,0.051443]
[1734799746970,0.00154336,97229.0,97228.0,0.5051]
[1734799747671,0.051439,97237.0,97228.0,0.5051]
[1734799747872,0.051439,97237.0,97236.0,0.3608]
[1734799750173,0.051436,97241.0,97236.0,0.412239]
[1734799750371,0.051433,97248.0,97236.0,0.3608]
[1734799750576,0.15343903,97252.0,97247.0,0.3608]
[1734799750777,0.051432,97249.0,97247.0,0.3608]
[1734799752078,0.054432,97249.0,97247.0,0.3608]
[1734799753073,0.054432,97249.0,97247.0,0.3618]
[1734799754280,0.055432,97249.0,97247.0,0.3618]
[1734799754971,0.004,97249.0,97247.0,0.3608]
[1734799755379,0.003,97249.0,97247.0,0.3608]
[1734799756171,0.003,97249.0,97247.0,0.412233]
[1734799756773,0.003,97249.0,97248.0,0.071]
[1734799757083,0.051428,97257.0,97250.0,0.051431]
[1734799757279,0.12285012,97256.0,97250.0,0.051431]
[1734799757882,0.12285012,97256.0,97247.0,0.3608]
[1734799758077,0.051432,97248.0,97247.0,0.3608]
[1734799759086,0.051432,97248.0,97247.0,0.3618]
[1734799760077,0.051432,97248.0,97247.0,0.3608]
[1734799761070,0.056432,97248.0,97247.0,0.3608]
[1734799761272,0.07901579,97248.0,97247.0,0.3608]
[1734799761685,0.07901579,97248.0,97247.0,0.3618]
[1734799762073,0.07901579,97248.0,97247.0,0.3608]
[1734799762679,0.02758379,97248.0,97247.0,0.3618]
[1734799763179,0.02258379,97248.0,97247.0,0.3618]
[1734799763375,0.003,97248.0,97247.0,0.3618]
[1734799763777,0.003,97248.0,97247.0,0.413233]
[1734799763977,0.17436576,97253.0,97247.0,0.413233]
[1734799764179,0.003,97248.0,97247.0,0.413233]
[1734799764580,0.003,97248.0,97247.0,0.412233]
[1734799764982,0.002,97248.0,97247.0,0.412233]
[1734799769681,0.12293576,97264.0,97247.0,0.6608]
[1734799769894,0.15343903,97274.0,97273.0,0.051419]
[1734799770192,0.15343903,97274.0,97273.0,0.412219]
[1734799770578,0.03993903,97274.0,97273.0,0.412219]
[1734799771184,0.051411,97290.0,97289.0,0.051411]
[1734799771385,0.051411,97290.0,97289.0,0.412211]
[1734799771888,0.28412683,97300.0,97289.0,0.3608]
[1734799772113,0.051407,97296.0,97294.0,0.051408]
[1734799772293,0.1,97300.0,97298.0,0.051406]
[1734799772485,0.1,97300.0,97299.0,0.3608]
[1734799773693,0.102,97300.0,97299.0,0.3618]
[1734799774598,0.1,97300.0,97299.0,0.3608]
[1734799774789,0.102,97300.0,97299.0,0.3608]
[1734799783493,0.05141,97290.0,97281.0,0.051415]
[1734799784197,0.051415,97281.0,97278.0,0.3608]
[1734799784499,0.3608,97293.0,97278.0,0.3608]
[1734799784704,0.051416,97280.0,97278.0,0.3608]
[1734799784889,0.051421,97269.0,97268.0,0.24631226]
[1734799785195,0.051407,97296.0,97271.0,0.05142]
[1734799785393,0.051414,97284.0,97270.0,0.1016177]
[1734799785598,0.051412,97288.0,97278.0,0.009]
[1734799786391,0.051414,97284.0,97278.0,0.009]
[1734799786599,0.051414,97283.0,97278.0,0.009]
[1734799787504,0.051414,97283.0,97275.0,0.3608]
[1734799787908,0.06957496,97283.0,97275.0,0.3608]
[1734799788987,0.07257496,97283.0,97276.0,0.051417]
[1734799789586,0.06957496,97283.0,97276.0,0.051417]
[1734799789798,0.07057496,97283.0,97276.0,0.051417]
[1734799790195,0.01916096,97283.0,97275.0,0.3608]
[1734799790405,0.051417,97278.0,97269.0,0.051421]
[1734799790703,0.1016177,97280.0,97267.0,0.3608]
[1734799790912,0.051422,97268.0,97267.0,0.3608]
[1734799792298,0.051422,97268.0,97267.0,0.3668]
[1734799792898,0.052422,97268.0,97267.0,0.3668]
[1734799793389,0.052422,97268.0,97267.0,0.3608]
[1734799793593,0.052422,97268.0,97267.0,0.3628]
[1734799793994,0.052422,97268.0,97267.0,0.3608]
[1734799794794,0.052422,97268.0,97267.0,0.3638]
[1734799795315,0.051422,97268.0,97267.0,0.3638]
[1734799796797,0.051422,97268.0,97267.0,0.3628]
[1734799796999,0.051422,97268.0,97267.0,0.002]
[1734799797507,0.051429,97254.0,97249.0,0.3608]
[1734799798606,0.051429,97254.0,97253.0,0.00554221]
[1734799800005,0.051429,97254.0,97253.0,0.01454221]
[1734799801106,0.06994933,97254.0,97253.0,0.01454221]
[1734799801700,0.01852033,97254.0,97253.0,0.01454221]
[1734799801905,0.15331719,97274.0,97253.0,0.37534221]
[1734799802115,0.15331719,97274.0,97268.0,0.3608]
[1734799802316,0.15331719,97274.0,97273.0,0.051419]
[1734799802510,0.15331719,97274.0,97268.0,0.3608]
[1734799803517,0.37676001,97294.0,97268.0,0.3608]
[1734799803518,0.1016177,97290.0,97268.0,0.3608]
[1734799803713,0.051421,97270.0,97268.0,0.3608]
[1734799804008,0.1016177,97280.0,97255.0,0.051429]
[1734799804210,0.051424,97265.0,97255.0,0.051429]
[1734799804916,0.051424,97265.0,97260.0,0.3608]
[1734799806107,0.05142,97273.0,97261.0,0.051426]
[1734799806314,0.05142,97273.0,97262.0,0.051425]
[1734799806513,0.05142,97272.0,97262.0,0.051425]
[1734799806716,0.05142,97271.0,97262.0,0.051425]
[1734799807218,0.01841732,97278.0,97268.0,0.3608]
[1734799807411,0.051419,97273.0,97268.0,0.412222]
[1734799808008,0.051416,97280.0,97269.0,0.051421]
[1734799808309,0.051416,97279.0,97270.0,0.1016177]
[1734799808517,0.051417,97278.0,97269.0,0.051421]
[1734799809015,0.051413,97286.0,97274.0,0.051419]
[1734799809213,0.001,97280.0,97276.0,0.3608]
[1734799809609,0.001,97280.0,97276.0,0.4376]
[1734799809809,0.001,97280.0,97276.0,0.489017]
[1734799810320,0.001,97280.0,97277.0,0.051417]
[1734799811016,0.001,97278.0,97277.0,0.051417]
[1734799811217,0.001,97278.0,97277.0,0.412217]
[1734799811519,0.001,97278.0,97277.0,0.413217]
[1734799811719,0.051414,97283.0,97277.0,0.413217]
[1734799812715,0.001,97278.0,97277.0,0.413217]
[1734799813119,0.001,97278.0,97277.0,0.412217]
[1734799813435,0.001,97278.0,97277.0,0.485717]
[1734799813723,0.001,97278.0,97277.0,0.486717]
[1734799813916,0.001,97278.0,97277.0,0.4353]
[1734799814216,0.051416,97279.0,97277.0,0.3618]
[1734799814723,0.051416,97279.0,97277.0,0.3658]
[1734799814919,0.0787,97278.0,97277.0,0.3658]
[1734799815123,0.0807,97278.0,97277.0,0.005]
[1734799815420,0.1572,97278.0,97277.0,0.005]
[1734799816016,0.518,97278.0,97277.0,0.005]
[1734799816208,0.58614216,97278.0,97277.0,0.005]
[1734799816619,0.051417,97277.0,97269.0,0.3608]
[1734799816818,0.58666217,97278.0,97269.0,0.3608]
[1734799817017,0.051421,97270.0,97269.0,0.3608]
[1734799817225,0.051428,97257.0,97256.0,0.54564923]
[1734799817521,0.051428,97257.0,97256.0,0.54500923]
[1734799818023,0.05143,97252.0,97251.0,0.18420923]
[1734799818320,0.05143,97252.0,97251.0,0.17452637]
[1734799818520,0.3608,97259.0,97251.0,0.15372637]
[1734799818825,0.07516001,97269.0,97258.0,0.3608]
[1734799819028,0.0787,97278.0,97258.0,0.3608]
[1734799819221,0.18412683,97260.0,97258.0,0.3608]
[1734799819522,0.23555283,97260.0,97258.0,0.3608]
[1734799820309,0.051427,97259.0,97258.0,0.007]
[1734799821717,0.051427,97259.0,97258.0,0.01]
[1734799821919,0.15380329,97268.0,97258.0,0.01]
[1734799822116,0.051423,97267.0,97263.0,0.3608]
[1734799822318,0.1720634,97268.0,97263.0,0.3608]
[1734799822520,0.15380329,97268.0,97264.0,0.131623]
[1734799822825,0.15380329,97268.0,97267.0,0.412222]
[1734799823821,0.0922552,97277.0,97267.0,0.412222]
[1734799824024,0.0922552,97277.0,97276.0,0.3608]
[1734799825224,0.1436722,97278.0,97276.0,0.3608]
[1734799826326,0.051417,97278.0,97276.0,0.3608]
[1734799826532,0.053417,97278.0,97276.0,0.3608]
[1734799827639,0.1456722,97278.0,97276.0,0.3608]
[1734799828125,0.1436722,97278.0,97276.0,0.3608]
[1734799828327,0.1456722,97278.0,97276.0,0.3608]
[1734799829322,0.1436722,97278.0,97276.0,0.3608]
[1734799829520,0.1456722,97278.0,97276.0,0.3608]
[1734799829921,0.0942552,97278.0,97276.0,0.412218]
[1734799830224,0.15380329,97288.0,97287.0,0.051412]
[1734799830429,0.15380329,97288.0,97287.0,0.412212]
[1734799831333,0.15680329,97288.0,97287.0,0.412212]
[1734799831741,0.003,97288.0,97287.0,0.412212]
[1734799832637,0.1,97300.0,97297.0,0.051407]
[1734799832845,0.1,97300.0,97299.0,0.051405]
[1734799835244,0.1,97300.0,97299.0,0.052405]
[1734799835929,0.12294892,97320.0,97317.0,0.051396]
[1734799836247,0.12294892,97320.0,97299.0,0.052405]
[1734799836248,0.12294892,97320.0,97319.0,0.3608]
[1734799836441,0.12294892,97323.0,97319.0,0.3608]
[1734799836741,0.051392,97325.0,97319.0,0.3608]
[1734799836939,0.06824815,97325.0,97319.0,0.3608]
[1734799837341,0.06824815,97325.0,97320.0,0.051394]
[1734799838042,0.051394,97320.0,97319.0,0.3618]
[1734799838244,0.051394,97320.0,97319.0,0.3628]
[1734799838730,0.051394,97320.0,97319.0,0.3618]
[1734799838934,0.051394,97320.0,97319.0,0.3608]
[1734799840144,0.06776754,97320.0,97319.0,0.3608]
[1734799840531,0.06776754,97320.0,97319.0,0.3618]
[1734799840734,0.06776754,97320.0,97319.0,0.3628]
[1734799841347,0.01637354,97320.0,97319.0,0.3628]
[1734799841551,0.051391,97327.0,97319.0,0.3628]
[1734799841845,0.12271406,97331.0,97320.0,0.051394]
[1734799842048,0.13940563,97331.0,97327.0,0.3608]
[1734799842233,0.12271406,97330.0,97327.0,0.3608]
[1734799842638,0.12271406,97330.0,97327.0,0.412191]
[1734799843049,0.12271406,97330.0,97328.0,0.05139]
[1734799843439,0.12271406,97330.0,97329.0,0.4405]
[1734799843841,0.0754,97348.0,97329.0,0.4405]
[1734799843842,0.01677871,97347.0,97336.0,0.051386]
[1734799844341,0.12271406,97349.0,97340.0,0.051384]
[1734799844549,0.12271406,97349.0,97345.0,0.3608]
[1734799844953,0.12271406,97349.0,97347.0,0.05138]
[1734799845845,0.12271406,97349.0,97345.0,0.3618]
[1734799845846,0.01652903,97356.0,97345.0,0.3618]
[1734799846145,0.126775,97358.0,97355.0,0.3608]
[1734799846346,0.051375,97358.0,97355.0,0.3608]
[1734799846656,0.051371,97365.0,97355.0,0.412176]
[1734799846950,0.051371,97365.0,97363.0,0.3608]
[1734799848344,0.051375,97356.0,97355.0,0.001]
[1734799848652,0.051383,97341.0,97335.0,0.3608]
[1734799848951,0.051386,97337.0,97335.0,0.3608]
[1734799850042,0.06659321,97337.0,97335.0,0.3608]
[1734799850463,0.051394,97321.0,97320.0,0.0824]
[1734799850653,0.3608,97336.0,97310.0,0.1016177]
[1734799850654,0.051393,97324.0,97321.0,0.3608]
[1734799851140,0.051393,97322.0,97321.0,0.3608]
[1734799851751,0.051393,97322.0,97321.0,0.3658]
[1734799851950,0.051393,97322.0,97321.0,0.3678]
[1734799852349,0.051393,97322.0,97321.0,0.002]
[1734799853856,0.051398,97313.0,97309.0,0.3608]
[1734799854045,0.051398,97313.0,97300.0,0.3608]
[1734799855352,0.051398,97313.0,97283.0,0.489914]
[1734799855353,0.1016177,97310.0,97283.0,0.4385]
[1734799855550,0.051396,97317.0,97283.0,0.4385]
[1734799855551,0.3608,97299.0,97283.0,0.3608]
[1734799855856,0.051413,97285.0,97283.0,0.3608]
[1734799856243,8.845e-05,97284.0,97283.0,0.3608]
[1734799857063,8.845e-05,97284.0,97283.0,0.3658]
[1734799857250,8.845e-05,97284.0,97283.0,0.6658]
[1734799857566,0.051401,97309.0,97283.0,0.6748]
[1734799857854,0.0766,97312.0,97301.0,0.3608]
[1734799858048,0.12271406,97317.0,97301.0,0.3608]
[1734799858245,0.17411006,97317.0,97312.0,0.3608]
[1734799858643,0.12271406,97317.0,97312.0,0.3608]
[1734799858859,0.12271406,97321.0,97312.0,0.3608]
[1734799859051,0.051398,97313.0,97312.0,0.3608]
[1734799859951,0.09858697,97322.0,97312.0,0.3608]
[1734799860148,0.051394,97321.0,97312.0,0.3608]
[1734799860352,0.09858697,97322.0,97301.0,0.3608]
[1734799860555,0.0514,97310.0,97301.0,0.3608]
[1734799861055,0.09858697,97322.0,97301.0,0.3608]
[1734799861249,0.3608,97317.0,97301.0,0.3608]
[1734799861450,0.0762,97316.0,97297.0,0.3608]
[1734799861959,0.051402,97307.0,97301.0,0.005]
[1734799862355,0.051402,97307.0,97301.0,0.001]
[1734799862658,0.0762,97316.0,97301.0,0.001]
[1734799862959,0.051402,97305.0,97301.0,0.001]
[1734799863160,0.051398,97313.0,97301.0,0.001]
[1734799863349,0.0762,97316.0,97301.0,0.001]
[1734799863350,0.0762,97316.0,97305.0,0.3608]
[1734799863547,0.051402,97306.0,97305.0,0.3608]
[1734799863753,0.051404,97302.0,97301.0,0.001]
[1734799863950,0.051404,97302.0,97301.0,0.007]
[1734799864149,0.12271406,97321.0,97301.0,0.007]
[1734799864358,0.12271406,97321.0,97320.0,0.3608]
[1734799864556,0.12271406,97323.0,97320.0,0.412194]
[1734799864859,0.12271406,97323.0,97322.0,0.412193]
[1734799865972,0.00154174,97333.0,97322.0,0.3608]
[1734799866161,0.00154174,97333.0,97332.0,0.3608]
[1734799866357,0.051381,97347.0,97332.0,0.3608]
[1734799866562,0.12271406,97350.0,97346.0,0.3608]